{"text_format":"1","workbook":"xlsx","n_sheets":1,"sheets":["стр.1_6"],"not_rendered":{"charts":0,"images":0,"macros":0,"external_links":0,"defined_names":1,"comments":0,"pivot_tables":0},"unopened":[],"bounds":{"document_bytes":16777216,"sheet_cells":100000,"rows_first":2000,"rows_last":500,"rows_between":2000,"halvings":0,"cell_chars":16384,"cell_head_chars":4096},"cells_cut":0,"cells_raw":0,"read":"whole","date_system":"1900"}

{"sheet":"стр.1_6","index":0,"n_rows":223,"n_cols":97,"rows_kept":223,"cut":false,"hidden":false,"merged":[[222,52,222,60],[22,0,22,107],[23,0,23,107],[213,68,213,87],[213,88,213,107],[214,7,214,67],[214,68,214,87],[214,88,214,107],[217,0,217,5],[217,7,217,67],[218,0,218,5],[218,7,218,67],[208,88,208,107],[209,68,209,87],[209,88,209,107],[210,7,210,67],[211,7,211,67],[219,0,219,5],[219,7,219,67],[219,68,219,87],[219,88,219,107],[217,68,217,87],[217,88,217,107],[218,68,218,87],[218,88,218,107],[206,68,206,87],[206,88,206,107],[207,68,207,87],[207,88,207,107],[216,0,216,5],[216,7,216,67],[216,68,216,87],[216,88,216,107],[213,7,213,67],[215,7,215,67],[215,68,215,87],[215,88,215,107],[206,7,206,67],[212,7,212,67],[212,68,212,87],[212,88,212,107],[206,0,206,5],[207,7,207,67],[214,0,214,5],[215,0,215,5],[207,0,207,5],[208,0,208,5],[209,0,209,5],[210,88,210,107],[211,68,211,87],[211,88,211,107],[208,7,208,67],[209,7,209,67],[208,68,208,87],[205,68,205,87],[205,88,205,107],[204,7,204,67],[204,68,204,87],[204,88,204,107],[210,0,210,5],[211,0,211,5],[212,0,212,5],[213,0,213,5],[197,96,197,107],[202,0,202,5],[205,0,205,5],[202,6,202,67],[202,68,202,87],[202,88,202,107],[197,1,197,23],[197,24,197,37],[197,38,197,47],[197,48,197,60],[197,61,197,72],[197,73,197,82],[197,83,197,95],[203,0,203,5],[204,0,204,5],[203,7,203,67],[205,7,205,67],[203,68,203,87],[203,88,203,107],[210,68,210,87],[195,1,195,23],[195,24,195,37],[195,38,195,47],[195,48,195,60],[154,61,154,72],[154,73,154,82],[156,1,156,107],[157,1,157,23],[157,24,157,37],[157,38,157,47],[195,61,195,72],[195,73,195,82],[195,83,195,95],[195,96,195,107],[157,48,157,60],[157,61,157,72],[157,73,157,82],[157,83,157,95],[157,96,157,107],[158,1,158,107],[159,83,159,95],[159,96,159,107],[160,1,160,23],[160,24,160,37],[154,83,154,95],[154,96,154,107],[154,1,154,23],[154,24,154,37],[154,38,154,47],[154,48,154,60],[153,1,153,23],[153,24,153,37],[153,38,153,47],[153,48,153,60],[151,48,151,60],[153,61,153,72],[153,73,153,82],[153,83,153,95],[153,96,153,107],[151,83,151,95],[151,96,151,107],[146,83,146,95],[140,96,140,107],[143,96,143,107],[143,83,143,95],[146,48,146,60],[149,1,149,107],[145,96,145,107],[151,1,151,23],[151,24,151,37],[151,38,151,47],[151,61,151,72],[151,73,151,82],[152,83,152,95],[146,96,146,107],[145,83,145,95],[152,96,152,107],[143,24,143,37],[196,1,196,23],[196,24,196,37],[196,38,196,47],[196,48,196,60],[196,61,196,72],[196,73,196,82],[196,83,196,95],[196,96,196,107],[144,73,144,82],[144,1,144,23],[144,96,144,107],[145,1,145,23],[144,38,144,47],[144,48,144,60],[144,61,144,72],[152,1,152,23],[152,24,152,37],[152,38,152,47],[152,48,152,60],[152,61,152,72],[152,73,152,82],[145,73,145,82],[146,24,146,37],[144,83,144,95],[137,1,137,23],[139,1,139,23],[143,1,143,23],[143,38,143,47],[143,48,143,60],[143,73,143,82],[143,61,143,72],[140,73,140,82],[139,24,139,37],[139,38,139,47],[139,48,139,60],[139,61,139,72],[139,73,139,82],[138,1,138,23],[140,1,140,23],[142,38,142,47],[142,48,142,60],[142,1,142,23],[133,96,133,107],[132,61,132,72],[132,73,132,82],[132,83,132,95],[144,24,144,37],[145,24,145,37],[145,38,145,47],[145,48,145,60],[145,61,145,72],[135,73,135,82],[135,83,135,95],[135,96,135,107],[138,61,138,72],[138,73,138,82],[138,83,138,95],[140,24,140,37],[140,38,140,47],[138,24,138,37],[140,83,140,95],[142,83,142,95],[141,1,141,107],[142,61,142,72],[142,73,142,82],[142,24,142,37],[71,62,71,88],[84,92,84,107],[84,72,84,91],[62,1,62,59],[60,1,60,107],[78,92,78,107],[78,72,78,91],[77,72,77,91],[76,0,76,5],[76,7,76,51],[77,0,77,5],[77,7,77,51],[77,52,77,71],[76,52,76,71],[69,39,69,107],[70,39,70,61],[70,62,70,88],[81,52,81,71],[78,52,78,71],[75,52,75,71],[80,92,80,107],[82,0,82,5],[82,7,82,51],[82,52,82,71],[10,73,10,107],[10,58,10,71],[27,1,27,40],[41,0,41,107],[49,0,49,4],[49,5,49,47],[28,41,28,89],[27,41,27,107],[43,0,43,4],[43,5,43,21],[43,22,43,107],[28,91,28,107],[30,41,30,107],[49,77,49,107],[14,0,14,107],[15,0,15,107],[16,0,16,107],[17,0,17,107],[18,59,18,62],[36,22,36,107],[28,1,28,40],[29,1,29,40],[29,41,29,107],[26,1,26,40],[30,1,30,40],[36,5,36,21],[36,0,36,4],[9,58,9,71],[71,89,71,107],[62,60,62,83],[62,84,62,107],[65,60,65,83],[65,84,65,107],[63,1,63,107],[64,1,64,59],[64,60,64,83],[11,6,11,29],[11,64,11,87],[9,0,9,13],[10,0,10,13],[26,41,26,107],[9,15,9,49],[10,15,10,49],[9,73,9,107],[58,0,58,59],[70,89,70,107],[71,1,71,38],[71,39,71,61],[114,31,114,46],[132,1,132,23],[107,7,107,51],[85,7,85,51],[85,52,85,71],[85,72,85,91],[85,92,85,107],[105,92,105,107],[103,7,103,51],[103,52,103,71],[103,72,103,91],[87,72,87,91],[87,92,87,107],[99,7,99,51],[99,52,99,71],[99,72,99,91],[99,92,99,107],[120,0,120,107],[125,73,126,82],[125,83,125,107],[94,7,94,51],[107,52,107,71],[108,72,108,91],[131,96,131,107],[222,71,222,97],[75,0,75,5],[78,0,78,5],[81,0,81,5],[106,0,106,5],[107,0,107,5],[108,0,108,5],[127,38,127,47],[132,24,132,37],[132,38,132,47],[132,48,132,60],[83,92,83,107],[83,72,83,91],[128,1,128,23],[128,24,128,37],[128,38,128,47],[84,0,84,5],[124,24,126,37],[124,73,124,107],[106,92,106,107],[106,7,106,51],[76,92,76,107],[77,92,77,107],[106,52,106,71],[126,83,126,95],[126,96,126,107],[127,83,127,95],[127,96,127,107],[127,73,127,82],[75,92,75,107],[75,72,75,91],[124,38,124,72],[125,38,126,47],[125,48,125,72],[116,72,116,87],[108,52,108,71],[84,7,84,51],[107,72,107,91],[107,92,107,107],[84,52,84,71],[83,52,83,71],[106,72,106,91],[87,7,87,51],[87,52,87,71],[90,72,90,91],[90,92,90,107],[78,7,78,51],[113,31,113,46],[135,1,135,23],[135,24,135,37],[135,38,135,47],[135,48,135,60],[134,1,134,107],[130,38,130,47],[130,48,130,60],[130,83,130,95],[131,61,131,72],[131,73,131,82],[131,83,131,95],[130,24,130,37],[130,96,130,107],[131,1,131,23],[131,24,131,37],[131,38,131,47],[131,48,131,60],[133,61,133,72],[133,73,133,82],[133,83,133,95],[133,1,133,23],[133,24,133,37],[133,38,133,47],[133,48,133,60],[146,61,146,72],[146,73,146,82],[146,1,146,23],[146,38,146,47],[147,73,147,82],[147,83,147,95],[150,96,150,107],[148,1,148,23],[148,24,148,37],[148,38,148,47],[148,48,148,60],[148,73,148,82],[148,83,148,95],[148,96,148,107],[148,61,148,72],[150,1,150,23],[150,24,150,37],[150,38,150,47],[150,48,150,60],[150,61,150,72],[150,73,150,82],[147,96,147,107],[147,1,147,23],[147,24,147,37],[147,38,147,47],[147,48,147,60],[150,83,150,95],[147,61,147,72],[39,0,39,4],[39,5,39,21],[39,22,39,107],[52,0,52,4],[52,5,52,47],[52,48,52,76],[52,77,52,107],[53,0,53,4],[53,5,53,47],[53,48,53,76],[53,77,53,107],[44,0,44,4],[44,5,44,21],[44,22,44,107],[46,0,46,107],[48,0,48,4],[48,5,48,47],[48,48,48,76],[48,77,48,107],[49,48,49,76],[51,0,51,107],[54,0,54,4],[54,5,54,47],[54,48,54,76],[85,0,85,5],[83,0,83,5],[81,7,81,51],[75,6,75,51],[76,72,76,91],[83,7,83,51],[61,60,61,83],[59,60,59,83],[59,84,59,107],[58,60,58,83],[58,84,58,107],[64,84,64,107],[65,1,65,59],[54,77,54,107],[69,0,70,38],[61,84,61,107],[59,1,59,59],[61,1,61,59],[79,72,79,91],[80,72,80,91],[79,92,79,107],[1,81,1,106],[155,1,155,23],[155,24,155,37],[155,38,155,47],[155,48,155,60],[155,61,155,72],[155,73,155,82],[155,83,155,95],[155,96,155,107],[104,0,104,5],[104,7,104,51],[104,52,104,71],[104,72,104,91],[104,92,104,107],[105,0,105,5],[105,7,105,51],[105,52,105,71],[105,72,105,91],[99,0,99,5],[91,0,91,5],[92,0,92,5],[93,0,93,5],[142,96,142,107],[101,0,101,5],[101,7,101,51],[101,52,101,71],[101,72,101,91],[101,92,101,107],[140,48,140,60],[140,61,140,72],[136,1,136,107],[139,96,139,107],[137,83,137,95],[137,96,137,107],[135,61,135,72],[139,83,139,95],[138,96,138,107],[102,0,102,5],[102,7,102,51],[102,52,102,71],[102,72,102,91],[102,92,102,107],[103,0,103,5],[103,92,103,107],[127,1,127,23],[138,38,138,47],[138,48,138,60],[160,96,160,107],[159,1,159,23],[159,24,159,37],[159,38,159,47],[159,48,159,60],[159,61,159,72],[159,73,159,82],[161,83,161,95],[161,96,161,107],[160,38,160,47],[160,48,160,60],[160,61,160,72],[160,73,160,82],[160,83,160,95],[162,1,162,107],[163,1,163,23],[163,24,163,37],[163,38,163,47],[163,48,163,60],[163,61,163,72],[163,73,163,82],[163,83,163,95],[161,1,161,23],[161,24,161,37],[161,38,161,47],[161,48,161,60],[161,61,161,72],[161,73,161,82],[163,96,163,107],[164,1,164,23],[164,24,164,37],[164,38,164,47],[164,48,164,60],[164,61,164,72],[164,73,164,82],[164,83,164,95],[164,96,164,107],[165,83,165,95],[165,96,165,107],[166,1,166,23],[166,24,166,37],[166,38,166,47],[166,48,166,60],[166,61,166,72],[166,73,166,82],[166,83,166,95],[166,96,166,107],[165,1,165,23],[165,24,165,37],[165,38,165,47],[165,48,165,60],[165,61,165,72],[165,73,165,82],[167,83,167,95],[167,96,167,107],[168,1,168,23],[168,24,168,37],[168,38,168,47],[168,48,168,60],[168,61,168,72],[168,73,168,82],[168,83,168,95],[168,96,168,107],[167,1,167,23],[167,24,167,37],[167,38,167,47],[167,48,167,60],[167,61,167,72],[167,73,167,82],[169,83,169,95],[169,96,169,107],[170,1,170,107],[171,1,171,23],[171,24,171,37],[171,38,171,47],[171,48,171,60],[171,61,171,72],[171,73,171,82],[171,83,171,95],[169,1,169,23],[169,24,169,37],[169,38,169,47],[169,48,169,60],[169,61,169,72],[169,73,169,82],[171,96,171,107],[172,1,172,23],[172,24,172,37],[172,38,172,47],[172,48,172,60],[172,61,172,72],[172,73,172,82],[172,83,172,95],[172,96,172,107],[173,83,173,95],[173,96,173,107],[174,1,174,23],[174,24,174,37],[174,38,174,47],[174,48,174,60],[174,61,174,72],[174,73,174,82],[174,83,174,95],[174,96,174,107],[173,1,173,23],[173,24,173,37],[173,38,173,47],[173,48,173,60],[173,61,173,72],[173,73,173,82],[175,83,175,95],[175,96,175,107],[176,1,176,23],[176,24,176,37],[176,38,176,47],[176,48,176,60],[176,61,176,72],[176,73,176,82],[176,83,176,95],[176,96,176,107],[175,1,175,23],[175,24,175,37],[175,38,175,47],[175,48,175,60],[175,61,175,72],[175,73,175,82],[177,1,177,107],[178,1,178,23],[178,24,178,37],[178,38,178,47],[178,48,178,60],[178,61,178,72],[178,73,178,82],[178,83,178,95],[178,96,178,107],[179,1,179,107],[180,1,180,23],[180,24,180,37],[180,38,180,47],[180,48,180,60],[180,61,180,72],[180,73,180,82],[180,83,180,95],[180,96,180,107],[181,83,181,95],[181,96,181,107],[182,1,182,23],[182,24,182,37],[182,38,182,47],[182,48,182,60],[182,61,182,72],[182,73,182,82],[182,83,182,95],[182,96,182,107],[181,1,181,23],[181,24,181,37],[181,38,181,47],[181,48,181,60],[181,61,181,72],[181,73,181,82],[183,1,183,107],[184,1,184,23],[184,24,184,37],[184,38,184,47],[184,48,184,60],[184,61,184,72],[184,73,184,82],[184,83,184,95],[184,96,184,107],[185,83,185,95],[185,96,185,107],[186,1,186,23],[186,24,186,37],[186,38,186,47],[186,48,186,60],[186,61,186,72],[186,73,186,82],[186,83,186,95],[186,96,186,107],[185,1,185,23],[185,24,185,37],[185,38,185,47],[185,48,185,60],[185,61,185,72],[185,73,185,82],[187,83,187,95],[187,96,187,107],[188,1,188,23],[188,24,188,37],[188,38,188,47],[188,48,188,60],[188,61,188,72],[188,73,188,82],[188,83,188,95],[188,96,188,107],[187,1,187,23],[187,24,187,37],[187,38,187,47],[187,48,187,60],[187,61,187,72],[187,73,187,82],[189,83,189,95],[189,96,189,107],[190,1,190,23],[190,24,190,37],[190,38,190,47],[190,48,190,60],[190,61,190,72],[190,73,190,82],[190,83,190,95],[190,96,190,107],[189,1,189,23],[189,24,189,37],[189,38,189,47],[189,48,189,60],[189,61,189,72],[189,73,189,82],[191,1,191,107],[192,1,192,23],[192,24,192,37],[192,38,192,47],[192,48,192,60],[192,61,192,72],[192,73,192,82],[192,83,192,95],[192,96,192,107],[193,83,193,95],[193,96,193,107],[194,1,194,23],[194,24,194,37],[194,38,194,47],[194,48,194,60],[194,61,194,72],[194,73,194,82],[194,83,194,95],[194,96,194,107],[193,1,193,23],[193,24,193,37],[193,38,193,47],[193,48,193,60],[193,61,193,72],[193,73,193,82],[82,72,82,91],[82,92,82,107],[92,52,92,71],[93,52,93,71],[94,52,94,71],[81,92,81,107],[81,72,81,91],[95,52,95,71],[96,52,96,71],[97,52,97,71],[95,7,95,51],[79,0,79,5],[80,0,80,5],[79,7,79,51],[80,7,80,51],[79,52,79,71],[80,52,80,71],[87,0,87,5],[90,0,90,5],[90,7,90,51],[90,52,90,71],[94,0,94,5],[95,0,95,5],[96,0,96,5],[97,0,97,5],[91,7,91,51],[92,7,92,51],[93,7,93,51],[108,92,108,107],[108,7,108,51],[124,0,126,23],[127,48,127,60],[126,48,126,60],[126,61,126,72],[127,61,127,72],[118,0,118,107],[137,24,137,37],[137,38,137,47],[137,48,137,60],[137,61,137,72],[137,73,137,82],[130,61,130,72],[130,73,130,82],[127,24,127,37],[128,96,128,107],[129,1,129,107],[128,48,128,60],[128,61,128,72],[128,73,128,82],[128,83,128,95],[130,1,130,23],[132,96,132,107],[37,22,37,107],[38,22,38,107],[37,5,37,21],[38,5,38,21],[37,0,37,4],[38,0,38,4],[100,0,100,5],[100,7,100,51],[100,52,100,71],[100,72,100,91],[100,92,100,107],[91,72,91,91],[92,72,92,91],[93,72,93,91],[94,72,94,91],[95,72,95,91],[96,72,96,91],[97,72,97,91],[91,92,91,107],[92,92,92,107],[93,92,93,107],[94,92,94,107],[95,92,95,107],[96,92,96,107],[98,0,98,5],[98,7,98,51],[98,52,98,71],[98,72,98,91],[98,92,98,107],[86,0,86,5],[86,7,86,51],[86,52,86,71],[86,72,86,91],[86,92,86,107],[88,0,88,5],[88,7,88,51],[88,52,88,71],[88,72,88,91],[88,92,88,107],[89,0,89,5],[89,7,89,51],[89,52,89,71],[89,72,89,91],[89,92,89,107],[97,92,97,107],[96,7,96,51],[97,7,97,51],[91,52,91,71]]}
[null,null,null,null,null,null,null,null,null,null,null,null,null,null,null,null,null,null,null,null,null,null,null,null,null,null,null,null,null,null,null,null,null,null,null,null,null,null,null,null,null,null,null,null,null,null,null,null,null,null,null,null,null,null,null,null,null,null,null,null,null,null,null,null,null,null,null,null,null,null,null,null,null,null,null,null,null,null,null,null,null,"Приложение "]
[null,null,null,null,null,null,null,null,null,null,null,null,null,null,null,null,null,null,null,null,null,null,null,null,null,null,null,null,null,null,null,null,null,null,null,null,null,null,null,null,null,null,null,null,null,null,null,null,null,null,null,null,null,null,null,null,null,null,null,null,null,null,null,null,null,null,null,null,null,null,null,null,null,null,null,null,null,null,null,null,null,"к приказу министерства образования Кировской области"]
[null,null,null,null,null,null,null,null,null,null,null,null,null,null,null,null,null,null,null,null,null,null,null,null,null,null,null,null,null,null,null,null,null,null,null,null,null,null,null,null,null,null,null,null,null,null,null,null,null,null,null,null,null,null,null,null,null,null,null,null,null,null,null,null,null,null,null,null,null,null,null,null,null,null,null,null,null,null,null,null,null,"от                2016 г. № 5-"]
[]
[]
[]
["СОГЛАСОВАНО",null,null,null,null,null,null,null,null,null,null,null,null,null,null,null,null,null,null,null,null,null,null,null,null,null,null,null,null,null,null,null,null,null,null,null,null,null,null,null,null,null,null,null,null,null,null,null,null,null,null,null,null,null,null,null,null,null,"УТВЕРЖДАЮ"]
["Министр образования",null,null,null,null,null,null,null,null,null,null,null,null,null,null,null,null,null,null,null,null,null,null,null,null,null,null,null,null,null,null,null,null,null,null,null,null,null,null,null,null,null,null,null,null,null,null,null,null,null,null,null,null,null,null,null,null,null,"Руководитель учреждения"]
["Кировской области"]
[null,null,null,null,null,null,null,null,null,null,null,null,null,null,null,null,null,null,null,null,null,null,null,null,null,null,null,null,null,null,null,null,null,null,null,null,null,null,null,null,null,null,null,null,null,null,null,null,null,null,null,null,null,null,null,null,null,null,null,null,null,null,null,null,null,null,null,null,null,null,null,null,null,"Е.В. Трубицына"]
["_______________",null,null,null,null,null,null,null,null,null,null,null,null,null,null,"О.Н Рысева",null,null,null,null,null,null,null,null,null,null,null,null,null,null,null,null,null,null,null,null,null,null,null,null,null,null,null,null,null,null,null,null,null,null,null,null,null,null,null,null,null,null,"Подпись",null,null,null,null,null,null,null,null,null,null,null,null,null,null,"Ф.И.О."]
["Дата",null,null,null,null,null,null,null,null,null,null,null,null,null,null,null,null,null,null,null,null,null,null,null,null,null,null,null,null,null,null,null,null,null,null,null,null,null,null,null,null,null,null,null,null,null,null,null,null,null,null,null,null,null,null,null,null,null,"Дата",null,null,null,null,null,"01.03.2018"]
[]
[]
["ОТЧЕТ"]
["о результатах деятельности областного государственного учреждения,"]
["подведомственного министерству образования Кировской области"]
["и об использовании закрепленного за ним"]
[null,null,null,null,null,null,null,null,null,null,null,null,null,null,null,null,null,null,null,null,null,null,null,null,null,null,null,null,null,null,null,null,null,null,null,null,null,null,null,null,null,null,null,null,null,null,null,null,null,null,null,null,null,null,null,null,null,null,"имущества за 20","17",null,null,null," год"]
[]
["Наименование областного"]
["государственного учреждения:"]
["КОГОБУ \"Центр дистанционного образования детей\""]
[]
[]
[]
[null,"Идентификационный номер Налогоплательщика (ИНН)",null,null,null,null,null,null,null,null,null,null,null,null,null,null,null,null,null,null,null,null,null,null,null,null,null,null,null,null,null,null,null,null,null,null,null,null,null,null,null,"4345308731"]
[null,"Код причины постановки на учет учреждения (КПП)",null,null,null,null,null,null,null,null,null,null,null,null,null,null,null,null,null,null,null,null,null,null,null,null,null,null,null,null,null,null,null,null,null,null,null,null,null,null,null,"434501001"]
[null,"Единицы измерения показателей: \n руб.коп.",null,null,null,null,null,null,null,null,null,null,null,null,null,null,null,null,null,null,null,null,null,null,null,null,null,null,null,null,null,null,null,null,null,null,null,null,null,null,null,"по ОКЕИ"]
[null,"Наименование органа, осуществляющего функции и полномочия учредителя",null,null,null,null,null,null,null,null,null,null,null,null,null,null,null,null,null,null,null,null,null,null,null,null,null,null,null,null,null,null,null,null,null,null,null,null,null,null,null,"Министерство образования Кировской области"]
[null,"Адрес фактического \nместонахождения областного государственного учреждения",null,null,null,null,null,null,null,null,null,null,null,null,null,null,null,null,null,null,null,null,null,null,null,null,null,null,null,null,null,null,null,null,null,null,null,null,null,null,null,"610006, Кировская обл., г. Киров.,ул. Лепсе, д.10"]
[]
[null,null,null,null,null,null,null,"I. Общие сведения об областном государственном учреждении"]
[]
["1.1. Основной вид деятельности учреждения:"]
[]
["№ п/п",null,null,null,null,"Код ОКВЭД",null,null,null,null,null,null,null,null,null,null,null,null,null,null,null,null,"Вид деятельности"]
[1,null,null,null,null,"85.12",null,null,null,null,null,null,null,null,null,null,null,null,null,null,null,null,"Образование начальное общее"]
[2,null,null,null,null,"85.13",null,null,null,null,null,null,null,null,null,null,null,null,null,null,null,null,"Образование основное общее"]
["4",null,null,null,null,"85.14",null,null,null,null,null,null,null,null,null,null,null,null,null,null,null,null,"Образование среднее общее"]
[]
["1.2._Иные виды деятельности, которые учреждение вправе осуществлять в соответствии с его учредительными документами:"]
[]
["№ п/п",null,null,null,null,"Код ОКВЭД",null,null,null,null,null,null,null,null,null,null,null,null,null,null,null,null,"Вид деятельности"]
["1",null,null,null,null,"85.41.9",null,null,null,null,null,null,null,null,null,null,null,null,null,null,null,null,"Образование дополнительное детей и взрослых прочее, не включенное в другие группировки"]
[]
["1.3._Перечень услуг (работ), которые оказываются учреждением потребителям за плату в случаях, предусмотренных нормативными правовыми актами, с указанием потребителей указанных услуг (работ):"]
[]
["№ п/п",null,null,null,null,"Наименование \nуслуги (работы)",null,null,null,null,null,null,null,null,null,null,null,null,null,null,null,null,null,null,null,null,null,null,null,null,null,null,null,null,null,null,null,null,null,null,null,null,null,null,null,null,null,null,"Категории \nпотребителей услуги (работы)",null,null,null,null,null,null,null,null,null,null,null,null,null,null,null,null,null,null,null,null,null,null,null,null,null,null,null,null,"Единицы измерения\nпоказателя объема\n(содержания) услуги (работы)"]
["1",null,null,null,null,"Реализация программ дополнительного образования",null,null,null,null,null,null,null,null,null,null,null,null,null,null,null,null,null,null,null,null,null,null,null,null,null,null,null,null,null,null,null,null,null,null,null,null,null,null,null,null,null,null,"Учащиеся",null,null,null,null,null,null,null,null,null,null,null,null,null,null,null,null,null,null,null,null,null,null,null,null,null,null,null,null,"час"]
[]
["1.4._Перечень разрешительных документов, на основании которых учреждение осуществляет деятельность (в случае, если виды деятельности учреждения, предусмотренные его учредительными документами, могут осуществляться только на основании специальных разрешений (лицензий):"]
["№ п/п",null,null,null,null,"Наименование  документа\nуслуги (работы)",null,null,null,null,null,null,null,null,null,null,null,null,null,null,null,null,null,null,null,null,null,null,null,null,null,null,null,null,null,null,null,null,null,null,null,null,null,null,null,null,null,null,"Номер, дата выдачи",null,null,null,null,null,null,null,null,null,null,null,null,null,null,null,null,null,null,null,null,null,null,null,null,null,null,null,null,"срок действия"]
["1",null,null,null,null,"Лицензия на право обеспечения образовательной деятельности",null,null,null,null,null,null,null,null,null,null,null,null,null,null,null,null,null,null,null,null,null,null,null,null,null,null,null,null,null,null,null,null,null,null,null,null,null,null,null,null,null,null,"№ 1309 от 10.06.2016",null,null,null,null,null,null,null,null,null,null,null,null,null,null,null,null,null,null,null,null,null,null,null,null,null,null,null,null,"Бессрочно"]
["2",null,null,null,null,"Устав, утвержден министерством образования",null,null,null,null,null,null,null,null,null,null,null,null,null,null,null,null,null,null,null,null,null,null,null,null,null,null,null,null,null,null,null,null,null,null,null,null,null,null,null,null,null,null,"№ 2-994 от 21.12.2015"]
[]
["1.5. Сведения о численности работников учреждения:"]
[]
["Наименование показателя",null,null,null,null,null,null,null,null,null,null,null,null,null,null,null,null,null,null,null,null,null,null,null,null,null,null,null,null,null,null,null,null,null,null,null,null,null,null,null,null,null,null,null,null,null,null,null,null,null,null,null,null,null,null,null,null,null,null,null,"На начало отчетного периода",null,null,null,null,null,null,null,null,null,null,null,null,null,null,null,null,null,null,null,null,null,null,null,"На конец отчетного\nпериода"]
[null,"Общее число штатных единиц учреждения",null,null,null,null,null,null,null,null,null,null,null,null,null,null,null,null,null,null,null,null,null,null,null,null,null,null,null,null,null,null,null,null,null,null,null,null,null,null,null,null,null,null,null,null,null,null,null,null,null,null,null,null,null,null,null,null,null,null,143,null,null,null,null,null,null,null,null,null,null,null,null,null,null,null,null,null,null,null,null,null,null,null,143]
[null,"из них:"]
[null,"Общее число штатных единиц административно-управленческого, административно-хозяйственного, вспомогательного и иного персонала, не принимавшего непосредственного участия в оказании учреждением государственных услуг (выполнении работ)",null,null,null,null,null,null,null,null,null,null,null,null,null,null,null,null,null,null,null,null,null,null,null,null,null,null,null,null,null,null,null,null,null,null,null,null,null,null,null,null,null,null,null,null,null,null,null,null,null,null,null,null,null,null,null,null,null,null,16,null,null,null,null,null,null,null,null,null,null,null,null,null,null,null,null,null,null,null,null,null,null,null,16]
[null,"Фактическая численность сотрудников учреждений",null,null,null,null,null,null,null,null,null,null,null,null,null,null,null,null,null,null,null,null,null,null,null,null,null,null,null,null,null,null,null,null,null,null,null,null,null,null,null,null,null,null,null,null,null,null,null,null,null,null,null,null,null,null,null,null,null,null,93,null,null,null,null,null,null,null,null,null,null,null,null,null,null,null,null,null,null,null,null,null,null,null,92]
[null,"из них:"]
[null,"Общее количество сотрудников административно-управленческого, административно-хозяйственного, вспомогательного и иного персонала, не принимавшего непосредственного участия в оказании учреждением государственных услуг (выполнении работ)",null,null,null,null,null,null,null,null,null,null,null,null,null,null,null,null,null,null,null,null,null,null,null,null,null,null,null,null,null,null,null,null,null,null,null,null,null,null,null,null,null,null,null,null,null,null,null,null,null,null,null,null,null,null,null,null,null,null,13,null,null,null,null,null,null,null,null,null,null,null,null,null,null,null,null,null,null,null,null,null,null,null,13]
[null,"Численность сотрудников учреждения, прошедших повышение квалификации",null,null,null,null,null,null,null,null,null,null,null,null,null,null,null,null,null,null,null,null,null,null,null,null,null,null,null,null,null,null,null,null,null,null,null,null,null,null,null,null,null,null,null,null,null,null,null,null,null,null,null,null,null,null,null,null,null,null,"Х",null,null,null,null,null,null,null,null,null,null,null,null,null,null,null,null,null,null,null,null,null,null,null,48]
[]
["1.6. Средняя заработная плата сотрудников учреждения за отчетный период:"]
[]
["Наименование показателя",null,null,null,null,null,null,null,null,null,null,null,null,null,null,null,null,null,null,null,null,null,null,null,null,null,null,null,null,null,null,null,null,null,null,null,null,null,null,"Среднегодовая заработная плата"]
[null,null,null,null,null,null,null,null,null,null,null,null,null,null,null,null,null,null,null,null,null,null,null,null,null,null,null,null,null,null,null,null,null,null,null,null,null,null,null,"За счет средств  областного бюджета",null,null,null,null,null,null,null,null,null,null,null,null,null,null,null,null,null,null,null,null,null,null,"За счет средств от оказания платных услуг и иной приносящей доход деятельности",null,null,null,null,null,null,null,null,null,null,null,null,null,null,null,null,null,null,null,null,null,null,null,null,null,null,"Итого"]
[null,"Средняя заработная плата сотрудников учреждения",null,null,null,null,null,null,null,null,null,null,null,null,null,null,null,null,null,null,null,null,null,null,null,null,null,null,null,null,null,null,null,null,null,null,null,null,null,22033.98,null,null,null,null,null,null,null,null,null,null,null,null,null,null,null,null,null,null,null,null,null,null,8467,null,null,null,null,null,null,null,null,null,null,null,null,null,null,null,null,null,null,null,null,null,null,null,null,null,null,23263.17]
[]
[null,null,null,null,null,null,null,"II. Результат деятельности учреждения"]
[]
["№ \nп/п",null,null,null,null,null,"Наименование показателя",null,null,null,null,null,null,null,null,null,null,null,null,null,null,null,null,null,null,null,null,null,null,null,null,null,null,null,null,null,null,null,null,null,null,null,null,null,null,null,null,null,null,null,null,null,"На начало отчетного периода",null,null,null,null,null,null,null,null,null,null,null,null,null,null,null,null,null,null,null,"На конец отчетного периода",null,null,null,null,null,null,null,null,null,null,null,null,null,null,null,null,null,null,null,"В %\nк предыдущему отчетному периоду"]
["1",null,null,null,null,null,null,"Балансовая(остаточная) стоимость нефинансовых активов",null,null,null,null,null,null,null,null,null,null,null,null,null,null,null,null,null,null,null,null,null,null,null,null,null,null,null,null,null,null,null,null,null,null,null,null,null,null,null,null,null,null,null,null,84093521.549999997,null,null,null,null,null,null,null,null,null,null,null,null,null,null,null,null,null,null,null,75560927.629999995,null,null,null,null,null,null,null,null,null,null,null,null,null,null,null,null,null,null,null,-0.10100000000000001]
["2",null,null,null,null,null,null,"Дебиторская задолженность в разрезе  выплат, предусмотренных планом ФХД",null,null,null,null,null,null,null,null,null,null,null,null,null,null,null,null,null,null,null,null,null,null,null,null,null,null,null,null,null,null,null,null,null,null,null,null,null,null,null,null,null,null,null,null,415274.58,null,null,null,null,null,null,null,null,null,null,null,null,null,null,null,null,null,null,null,224538.15,null,null,null,null,null,null,null,null,null,null,null,null,null,null,null,null,null,null,null,-0.46]
["2.1",null,null,null,null,null,null,"Расчеты по авансам по коммунальным услугам",null,null,null,null,null,null,null,null,null,null,null,null,null,null,null,null,null,null,null,null,null,null,null,null,null,null,null,null,null,null,null,null,null,null,null,null,null,null,null,null,null,null,null,null,20984.31,null,null,null,null,null,null,null,null,null,null,null,null,null,null,null,null,null,null,null,43218.39,null,null,null,null,null,null,null,null,null,null,null,null,null,null,null,null,null,null,null,2.06]
["2.2",null,null,null,null,null,null,"Расчеты  по авансам  по прочим работам, услугам",null,null,null,null,null,null,null,null,null,null,null,null,null,null,null,null,null,null,null,null,null,null,null,null,null,null,null,null,null,null,null,null,null,null,null,null,null,null,null,null,null,null,null,null,15085,null,null,null,null,null,null,null,null,null,null,null,null,null,null,null,null,null,null,null,3030,null,null,null,null,null,null,null,null,null,null,null,null,null,null,null,null,null,null,null,-0.8]
["2.3",null,null,null,null,null,null,"Расчеты с подотчетными лицами по приобретению материальных запасов"]
["2.4",null,null,null,null,null,null,"Расчеты по страховым взносам на обязательное социальное страхование на случай временной нетрудоспособности и в связи с материнством",null,null,null,null,null,null,null,null,null,null,null,null,null,null,null,null,null,null,null,null,null,null,null,null,null,null,null,null,null,null,null,null,null,null,null,null,null,null,null,null,null,null,null,null,234780.49,null,null,null,null,null,null,null,null,null,null,null,null,null,null,null,null,null,null,null,58907.27,null,null,null,null,null,null,null,null,null,null,null,null,null,null,null,null,null,null,null,-0.75]
["2.5",null,null,null,null,null,null,"Расчеты с плательщиками  доходов от оказания платных работ, услуг",null,null,null,null,null,null,null,null,null,null,null,null,null,null,null,null,null,null,null,null,null,null,null,null,null,null,null,null,null,null,null,null,null,null,null,null,null,null,null,null,null,null,null,null,144424.78,null,null,null,null,null,null,null,null,null,null,null,null,null,null,null,null,null,null,null,85518.49,null,null,null,null,null,null,null,null,null,null,null,null,null,null,null,null,null,null,null,-0.41]
["2.6",null,null,null,null,null,null,"Расчеты по земельному налогу",null,null,null,null,null,null,null,null,null,null,null,null,null,null,null,null,null,null,null,null,null,null,null,null,null,null,null,null,null,null,null,null,null,null,null,null,null,null,null,null,null,null,null,null,0,null,null,null,null,null,null,null,null,null,null,null,null,null,null,null,null,null,null,null,33864,null,null,null,null,null,null,null,null,null,null,null,null,null,null,null,null,null,null,null,1]
["3.",null,null,null,null,null,null,"Нереальная к взысканию дебиторская задолженность"]
["4.",null,null,null,null,null,null,"Кредиторская задолженность в разрезе  выплат, предусмотренных планом ФХД",null,null,null,null,null,null,null,null,null,null,null,null,null,null,null,null,null,null,null,null,null,null,null,null,null,null,null,null,null,null,null,null,null,null,null,null,null,null,null,null,null,null,null,null,{"$f":"BA87+BA88+BA89+BA90+BA91+BA92+BA93+BA94+BA95+BA96+BA97+BA98+BA99+BA100+BA101","v":2212760.0900000003},null,null,null,null,null,null,null,null,null,null,null,null,null,null,null,null,null,null,null,1850894.6,null,null,null,null,null,null,null,null,null,null,null,null,null,null,null,null,null,null,null,-0.16]
["4.1",null,null,null,null,null,null,"Расчеты по заработной плате",null,null,null,null,null,null,null,null,null,null,null,null,null,null,null,null,null,null,null,null,null,null,null,null,null,null,null,null,null,null,null,null,null,null,null,null,null,null,null,null,null,null,null,null,808810.53,null,null,null,null,null,null,null,null,null,null,null,null,null,null,null,null,null,null,null,650109.29,null,null,null,null,null,null,null,null,null,null,null,null,null,null,null,null,null,null,null,-0.2]
["4.2",null,null,null,null,null,null,"Расчеты по прочим выплатам",null,null,null,null,null,null,null,null,null,null,null,null,null,null,null,null,null,null,null,null,null,null,null,null,null,null,null,null,null,null,null,null,null,null,null,null,null,null,null,null,null,null,null,null,191.05,null,null,null,null,null,null,null,null,null,null,null,null,null,null,null,null,null,null,null,0,null,null,null,null,null,null,null,null,null,null,null,null,null,null,null,null,null,null,null,-1]
["4.3",null,null,null,null,null,null,"Расчеты по начислениям на выплаты по оплате труда",null,null,null,null,null,null,null,null,null,null,null,null,null,null,null,null,null,null,null,null,null,null,null,null,null,null,null,null,null,null,null,null,null,null,null,null,null,null,null,null,null,null,null,null,60580.37,null,null,null,null,null,null,null,null,null,null,null,null,null,null,null,null,null,null,null,44592.35,null,null,null,null,null,null,null,null,null,null,null,null,null,null,null,null,null,null,null,-0.26]
["4.4",null,null,null,null,null,null,"Расчеты по прочим работам, услугам",null,null,null,null,null,null,null,null,null,null,null,null,null,null,null,null,null,null,null,null,null,null,null,null,null,null,null,null,null,null,null,null,null,null,null,null,null,null,null,null,null,null,null,null,21304,null,null,null,null,null,null,null,null,null,null,null,null,null,null,null,null,null,null,null,0,null,null,null,null,null,null,null,null,null,null,null,null,null,null,null,null,null,null,null,-1]
["4.5",null,null,null,null,null,null,"Расчеты  по налогу на доходы физических лиц",null,null,null,null,null,null,null,null,null,null,null,null,null,null,null,null,null,null,null,null,null,null,null,null,null,null,null,null,null,null,null,null,null,null,null,null,null,null,null,null,null,null,null,null,288992,null,null,null,null,null,null,null,null,null,null,null,null,null,null,null,null,null,null,null,347634,null,null,null,null,null,null,null,null,null,null,null,null,null,null,null,null,null,null,null,0.2]
["4.6",null,null,null,null,null,null,"Расчеты по страховым взносам на обязательное социальное страхование на случай временной нетрудоспособности и в связи с материнством",null,null,null,null,null,null,null,null,null,null,null,null,null,null,null,null,null,null,null,null,null,null,null,null,null,null,null,null,null,null,null,null,null,null,null,null,null,null,null,null,null,null,null,null,4771.53,null,null,null,null,null,null,null,null,null,null,null,null,null,null,null,null,null,null,null,5756.3,null,null,null,null,null,null,null,null,null,null,null,null,null,null,null,null,null,null,null,0.21]
["4.7",null,null,null,null,null,null,"Расчеты по прочим платежам в бюджет",null,null,null,null,null,null,null,null,null,null,null,null,null,null,null,null,null,null,null,null,null,null,null,null,null,null,null,null,null,null,null,null,null,null,null,null,null,null,null,null,null,null,null,null,1302,null,null,null,null,null,null,null,null,null,null,null,null,null,null,null,null,null,null,null,1284,null,null,null,null,null,null,null,null,null,null,null,null,null,null,null,null,null,null,null,0.01]
["4.8",null,null,null,null,null,null,"Расчеты по страховым взносам на обязательное социальное страхование от несчастных случаев на производстве и проффесиональных заболеваний",null,null,null,null,null,null,null,null,null,null,null,null,null,null,null,null,null,null,null,null,null,null,null,null,null,null,null,null,null,null,null,null,null,null,null,null,null,null,null,null,null,null,null,null,4663.67,null,null,null,null,null,null,null,null,null,null,null,null,null,null,null,null,null,null,null,5439.68,null,null,null,null,null,null,null,null,null,null,null,null,null,null,null,null,null,null,null,0.16]
["4.9",null,null,null,null,null,null,"Расчеты по страховым взносам на обязательное медицинское страхование в Федеральный ФОМС",null,null,null,null,null,null,null,null,null,null,null,null,null,null,null,null,null,null,null,null,null,null,null,null,null,null,null,null,null,null,null,null,null,null,null,null,null,null,null,null,null,null,null,null,120162.94,null,null,null,null,null,null,null,null,null,null,null,null,null,null,null,null,null,null,null,145066.75,null,null,null,null,null,null,null,null,null,null,null,null,null,null,null,null,null,null,null,0.21]
["4.10",null,null,null,null,null,null,"Расчеты по страховым взносам на обязательное пенсионное страхование на выплату страховой части трудовой пенсии",null,null,null,null,null,null,null,null,null,null,null,null,null,null,null,null,null,null,null,null,null,null,null,null,null,null,null,null,null,null,null,null,null,null,null,null,null,null,null,null,null,null,null,null,835092.09,null,null,null,null,null,null,null,null,null,null,null,null,null,null,null,null,null,null,null,625778.18999999994,null,null,null,null,null,null,null,null,null,null,null,null,null,null,null,null,null,null,null,-0.25]
["4.11",null,null,null,null,null,null,"Расчеты по налогу на имущество организаций",null,null,null,null,null,null,null,null,null,null,null,null,null,null,null,null,null,null,null,null,null,null,null,null,null,null,null,null,null,null,null,null,null,null,null,null,null,null,null,null,null,null,null,null,8925,null,null,null,null,null,null,null,null,null,null,null,null,null,null,null,null,null,null,null,11909,null,null,null,null,null,null,null,null,null,null,null,null,null,null,null,null,null,null,null,0.33]
["4.12",null,null,null,null,null,null,"Расчеты по земельному налогу",null,null,null,null,null,null,null,null,null,null,null,null,null,null,null,null,null,null,null,null,null,null,null,null,null,null,null,null,null,null,null,null,null,null,null,null,null,null,null,null,null,null,null,null,35304,null,null,null,null,null,null,null,null,null,null,null,null,null,null,null,null,null,null,null,0,null,null,null,null,null,null,null,null,null,null,null,null,null,null,null,null,null,null,null,-1]
["4.13",null,null,null,null,null,null,"Расчеты по удержаниям из выплат по оплате труда",null,null,null,null,null,null,null,null,null,null,null,null,null,null,null,null,null,null,null,null,null,null,null,null,null,null,null,null,null,null,null,null,null,null,null,null,null,null,null,null,null,null,null,null,22660.91,null,null,null,null,null,null,null,null,null,null,null,null,null,null,null,null,null,null,null,13325.04,null,null,null,null,null,null,null,null,null,null,null,null,null,null,null,null,null,null,null,-0.41]
["4.13",null,null,null,null,null,null,"Расчеты с плательщиками по доходам от оказания платных работ, услуг"]
["4.14",null,null,null,null,null,null,"Расчеты с плательщиками прочих доходов"]
["5",null,null,null,null,null,null,"Сумма доходов, полученных учреждением от оказания платных услуг(выполнения работ)",null,null,null,null,null,null,null,null,null,null,null,null,null,null,null,null,null,null,null,null,null,null,null,null,null,null,null,null,null,null,null,null,null,null,null,null,null,null,null,null,null,null,null,null,1715050.8,null,null,null,null,null,null,null,null,null,null,null,null,null,null,null,null,null,null,null,2149368.29,null,null,null,null,null,null,null,null,null,null,null,null,null,null,null,null,null,null,null,0.25]
["6",null,null,null,null,null,null,"Цены, тарифы на платные услуги, оказываемые потребителям",null,null,null,null,null,null,null,null,null,null,null,null,null,null,null,null,null,null,null,null,null,null,null,null,null,null,null,null,null,null,null,null,null,null,null,null,null,null,null,null,null,null,null,null,320,null,null,null,null,null,null,null,null,null,null,null,null,null,null,null,null,null,null,null,320,null,null,null,null,null,null,null,null,null,null,null,null,null,null,null,null,null,null,null,1]
["7",null,null,null,null,null,null,"общее количество потребителей, воспользовавшихся услугами учреждения",null,null,null,null,null,null,null,null,null,null,null,null,null,null,null,null,null,null,null,null,null,null,null,null,null,null,null,null,null,null,null,null,null,null,null,null,null,null,null,null,null,null,null,null,277,null,null,null,null,null,null,null,null,null,null,null,null,null,null,null,null,null,null,null,322,null,null,null,null,null,null,null,null,null,null,null,null,null,null,null,null,null,null,null,0.16]
[null,null,null,null,null,null,null,"в том числе: платными",null,null,null,null,null,null,null,null,null,null,null,null,null,null,null,null,null,null,null,null,null,null,null,null,null,null,null,null,null,null,null,null,null,null,null,null,null,null,null,null,null,null,null,null,60,null,null,null,null,null,null,null,null,null,null,null,null,null,null,null,null,null,null,null,87,null,null,null,null,null,null,null,null,null,null,null,null,null,null,null,null,null,null,null,0.45]
["8",null,null,null,null,null,null,"Количество жалоб  потребителей "]
["9",null,null,null,null,null,null,"Принятые по результатам рассмотрения жалоб меры"]
[]
[]
[]
["Справочно:"]
[]
["1)",null,null,"Просроченная кредиторская задолженность:"]
[null,null,null,"на начало отчетного периода",null,null,null,null,null,null,null,null,null,null,null,null,null,null,null,null,null,null,null,null,null,null,null,null,null,null,null,316742.33,null,null,null,null,null,null,null,null,null,null,null,null,null,null,null,null,"руб.коп"]
[null,null,null,"на конец отчетного периода",null,null,null,null,null,null,null,null,null,null,null,null,null,null,null,null,null,null,null,null,null,null,null,null,null,null,null,"-",null,null,null,null,null,null,null,null,null,null,null,null,null,null,null,null,"руб.коп."]
["2)_Общая сумма выставленных требований к возмещению ущерба по недостачам и хищениям материальных"]
[null,null,null,"ценностей, денежных средств, а также от порчи материальных ценностей:",null,null,null,null,null,null,null,null,null,null,null,null,null,null,null,null,null,null,null,null,null,null,null,null,null,null,null,null,null,null,null,null,null,null,null,null,null,null,null,null,null,null,null,null,null,null,null,null,null,null,null,null,null,null,null,null,null,null,null,null,null,null,null,null,null,null,null,null,"-",null,null,null,null,null,null,null,null,null,null,null,null,null,null,null,null,"руб,коп."]
["3)_Причины образования дебиторской задолженности, нереальной к взысканию:"]
[]
["4)_Причины образования просроченной кредиторской задолженности:"]
["Недофинансирование в связи с приоритизацией расходов областного бюджета."]
[]
["2.1. Исполнение плана финансово-хозяйственной деятельности."]
[]
["Наименование\nпоказателей",null,null,null,null,null,null,null,null,null,null,null,null,null,null,null,null,null,null,null,null,null,null,null,"Код бюджетной классификации и операции сектора государственного управления",null,null,null,null,null,null,null,null,null,null,null,null,null,"План (с учетом возвратов)",null,null,null,null,null,null,null,null,null,null,null,null,null,null,null,null,null,null,null,null,null,null,null,null,null,null,null,null,null,null,null,null,null,null,"Кассовые поступления и выплаты"]
[null,null,null,null,null,null,null,null,null,null,null,null,null,null,null,null,null,null,null,null,null,null,null,null,null,null,null,null,null,null,null,null,null,null,null,null,null,null,"всего",null,null,null,null,null,null,null,null,null,"в том числе:",null,null,null,null,null,null,null,null,null,null,null,null,null,null,null,null,null,null,null,null,null,null,null,null,"всего",null,null,null,null,null,null,null,null,null,"в том числе:"]
[null,null,null,null,null,null,null,null,null,null,null,null,null,null,null,null,null,null,null,null,null,null,null,null,null,null,null,null,null,null,null,null,null,null,null,null,null,null,null,null,null,null,null,null,null,null,null,null,"операции по лицевым счетам, открытым\nв органах  казначейства",null,null,null,null,null,null,null,null,null,null,null,null,"операции по счетам, открытым в кредитных организациях ",null,null,null,null,null,null,null,null,null,null,null,null,null,null,null,null,null,null,null,null,null,"операции по лицевым счетам, открытым\nв органах  казначейства",null,null,null,null,null,null,null,null,null,null,null,null,"операции по счетам, открытым в кредитных организациях "]
[null,"Остаток средств на начало текущего финансового года",null,null,null,null,null,null,null,null,null,null,null,null,null,null,null,null,null,null,null,null,null,null,"Х",null,null,null,null,null,null,null,null,null,null,null,null,null,690230.78,null,null,null,null,null,null,null,null,null,690230.78]
[null,"Поступления, всего",null,null,null,null,null,null,null,null,null,null,null,null,null,null,null,null,null,null,null,null,null,null,null,null,null,null,null,null,null,null,null,null,null,null,null,null,45239600,null,null,null,null,null,null,null,null,null,45239600,null,null,null,null,null,null,null,null,null,null,null,null,null,null,null,null,null,null,null,null,null,null,null,null,45231968.289999999,null,null,null,null,null,null,null,null,null,45231968.289999999]
[null,"в том числе:"]
[null,"субсидии на выполнение государственного задания",null,null,null,null,null,null,null,null,null,null,null,null,null,null,null,null,null,null,null,null,null,null,"х",null,null,null,null,null,null,null,null,null,null,null,null,null,43082600,null,null,null,null,null,null,null,null,null,43082600,null,null,null,null,null,null,null,null,null,null,null,null,null,null,null,null,null,null,null,null,null,null,null,null,43082600,null,null,null,null,null,null,null,null,null,43082600]
[null,"субсидии на иные цели, всего",null,null,null,null,null,null,null,null,null,null,null,null,null,null,null,null,null,null,null,null,null,null,"х"]
[null,"Поступления от оказания платных услуг (выполнения работ) и иной приносящей доход деятельности, всего",null,null,null,null,null,null,null,null,null,null,null,null,null,null,null,null,null,null,null,null,null,null,"х",null,null,null,null,null,null,null,null,null,null,null,null,null,2157000,null,null,null,null,null,null,null,null,null,2157000,null,null,null,null,null,null,null,null,null,null,null,null,null,null,null,null,null,null,null,null,null,null,null,null,2149368.29,null,null,null,null,null,null,null,null,null,2149368.29]
[null,"Выплаты за счет субсидии на выполнение государственного задания",null,null,null,null,null,null,null,null,null,null,null,null,null,null,null,null,null,null,null,null,null,null,"900",null,null,null,null,null,null,null,null,null,null,null,null,null,{"$f":"AM136+AM141+AM152+AM153+AM155","v":43427500},null,null,null,null,null,null,null,null,null,{"$f":"AW136+AW141+AW152+AW153+AW155","v":43427500},null,null,null,null,null,null,null,null,null,null,null,null,null,null,null,null,null,null,null,null,null,null,null,null,{"$f":"BV136+BV141+BV152+BV153+BV155","v":42366217.099999994},null,null,null,null,null,null,null,null,null,{"$f":"CF136+CF141+CF152+CF153+CF155","v":42366217.099999994}]
[null,"в том числе"]
[null,"оплата труда и начисления на выплаты по оплате труда, всего",null,null,null,null,null,null,null,null,null,null,null,null,null,null,null,null,null,null,null,null,null,null,"210",null,null,null,null,null,null,null,null,null,null,null,null,null,{"$f":"AM138+AM139+AM140","v":32182800},null,null,null,null,null,null,null,null,null,{"$f":"AW138+AW139+AW140","v":32182800},null,null,null,null,null,null,null,null,null,null,null,null,null,null,null,null,null,null,null,null,null,null,null,null,{"$f":"BV138+BV139+BV140","v":32181328.309999999},null,null,null,null,null,null,null,null,null,{"$f":"CF138+CF139+CF140","v":32181328.309999999}]
[null,"из них:"]
[null,"заработная плата",null,null,null,null,null,null,null,null,null,null,null,null,null,null,null,null,null,null,null,null,null,null,"211",null,null,null,null,null,null,null,null,null,null,null,null,null,24666400,null,null,null,null,null,null,null,null,null,24666400,null,null,null,null,null,null,null,null,null,null,null,null,null,null,null,null,null,null,null,null,null,null,null,null,24665222.719999999,null,null,null,null,null,null,null,null,null,24665222.719999999]
[null,"Прочие выплаты",null,null,null,null,null,null,null,null,null,null,null,null,null,null,null,null,null,null,null,null,null,null,"212",null,null,null,null,null,null,null,null,null,null,null,null,null,11400,null,null,null,null,null,null,null,null,null,11400,null,null,null,null,null,null,null,null,null,null,null,null,null,null,null,null,null,null,null,null,null,null,null,null,11387.68,null,null,null,null,null,null,null,null,null,11387.68]
[null,"начисления на выплаты по оплате труда",null,null,null,null,null,null,null,null,null,null,null,null,null,null,null,null,null,null,null,null,null,null,"213",null,null,null,null,null,null,null,null,null,null,null,null,null,7505000,null,null,null,null,null,null,null,null,null,7505000,null,null,null,null,null,null,null,null,null,null,null,null,null,null,null,null,null,null,null,null,null,null,null,null,7504717.9100000001,null,null,null,null,null,null,null,null,null,7504717.9100000001]
[null,"Оплата работ, услуг, всего",null,null,null,null,null,null,null,null,null,null,null,null,null,null,null,null,null,null,null,null,null,null,"220",null,null,null,null,null,null,null,null,null,null,null,null,null,{"$f":"AM143+AM144+AM145+AM146+AM147+AM148","v":8997300},null,null,null,null,null,null,null,null,null,{"$f":"AW143+AW144+AW145+AW146+AW147+AW148","v":8997300},null,null,null,null,null,null,null,null,null,null,null,null,null,null,null,null,null,null,null,null,null,null,null,null,{"$f":"BV143+BV144+BV145+BV146+BV147+BV148","v":8536145.0299999993},null,null,null,null,null,null,null,null,null,{"$f":"CF143+CF144+CF145+CF146+CF147+CF148","v":8536145.0299999993}]
[null,"из них:"]
[null,"услуги связи",null,null,null,null,null,null,null,null,null,null,null,null,null,null,null,null,null,null,null,null,null,null,"221",null,null,null,null,null,null,null,null,null,null,null,null,null,6129000,null,null,null,null,null,null,null,null,null,6129000,null,null,null,null,null,null,null,null,null,null,null,null,null,null,null,null,null,null,null,null,null,null,null,null,6127851.5999999996,null,null,null,null,null,null,null,null,null,6127851.5999999996]
[null,"транспортные услуги",null,null,null,null,null,null,null,null,null,null,null,null,null,null,null,null,null,null,null,null,null,null,"222",null,null,null,null,null,null,null,null,null,null,null,null,null,78400,null,null,null,null,null,null,null,null,null,78400,null,null,null,null,null,null,null,null,null,null,null,null,null,null,null,null,null,null,null,null,null,null,null,null,77474.5,null,null,null,null,null,null,null,null,null,77474.5]
[null,"коммунальные услуги",null,null,null,null,null,null,null,null,null,null,null,null,null,null,null,null,null,null,null,null,null,null,"223",null,null,null,null,null,null,null,null,null,null,null,null,null,562000,null,null,null,null,null,null,null,null,null,562000,null,null,null,null,null,null,null,null,null,null,null,null,null,null,null,null,null,null,null,null,null,null,null,null,461652.8,null,null,null,null,null,null,null,null,null,461652.8]
[null,"арендная плата за пользование имуществом",null,null,null,null,null,null,null,null,null,null,null,null,null,null,null,null,null,null,null,null,null,null,"224"]
[null,"работы, услуги по содержанию имущества",null,null,null,null,null,null,null,null,null,null,null,null,null,null,null,null,null,null,null,null,null,null,"225",null,null,null,null,null,null,null,null,null,null,null,null,null,971500,null,null,null,null,null,null,null,null,null,971500,null,null,null,null,null,null,null,null,null,null,null,null,null,null,null,null,null,null,null,null,null,null,null,null,971061.31,null,null,null,null,null,null,null,null,null,971061.31]
[null,"прочие работы, услуги",null,null,null,null,null,null,null,null,null,null,null,null,null,null,null,null,null,null,null,null,null,null,"226",null,null,null,null,null,null,null,null,null,null,null,null,null,1256400,null,null,null,null,null,null,null,null,null,1256400,null,null,null,null,null,null,null,null,null,null,null,null,null,null,null,null,null,null,null,null,null,null,null,null,898104.82,null,null,null,null,null,null,null,null,null,898104.82]
[null,"Социальное обеспечение, всего",null,null,null,null,null,null,null,null,null,null,null,null,null,null,null,null,null,null,null,null,null,null,"260"]
[null,"из них:"]
[null,"пособия по социальной помощи населению",null,null,null,null,null,null,null,null,null,null,null,null,null,null,null,null,null,null,null,null,null,null,"262"]
[null,"Прочие расходы",null,null,null,null,null,null,null,null,null,null,null,null,null,null,null,null,null,null,null,null,null,null,"290",null,null,null,null,null,null,null,null,null,null,null,null,null,140200,null,null,null,null,null,null,null,null,null,140200,null,null,null,null,null,null,null,null,null,null,null,null,null,null,null,null,null,null,null,null,null,null,null,null,134863.79999999999,null,null,null,null,null,null,null,null,null,134863.79999999999]
[null,"Приобретение\nосновных средств",null,null,null,null,null,null,null,null,null,null,null,null,null,null,null,null,null,null,null,null,null,null,"310",null,null,null,null,null,null,null,null,null,null,null,null,null,1547300,null,null,null,null,null,null,null,null,null,1547300,null,null,null,null,null,null,null,null,null,null,null,null,null,null,null,null,null,null,null,null,null,null,null,null,954300,null,null,null,null,null,null,null,null,null,954300]
[null,"Приобретение нематериальных активов",null,null,null,null,null,null,null,null,null,null,null,null,null,null,null,null,null,null,null,null,null,null,"320"]
[null,"Приобретение материальных запасов",null,null,null,null,null,null,null,null,null,null,null,null,null,null,null,null,null,null,null,null,null,null,"340",null,null,null,null,null,null,null,null,null,null,null,null,null,559900,null,null,null,null,null,null,null,null,null,559900,null,null,null,null,null,null,null,null,null,null,null,null,null,null,null,null,null,null,null,null,null,null,null,null,559579.96,null,null,null,null,null,null,null,null,null,559579.96]
[null,"Выплаты за счет субсидии на  иные цели",null,null,null,null,null,null,null,null,null,null,null,null,null,null,null,null,null,null,null,null,null,null,"900"]
[null,"в том числе"]
[null,"оплата труда и начисления на выплаты по оплате труда, всего",null,null,null,null,null,null,null,null,null,null,null,null,null,null,null,null,null,null,null,null,null,null,"210"]
[null,"из них:"]
[null,"заработная плата",null,null,null,null,null,null,null,null,null,null,null,null,null,null,null,null,null,null,null,null,null,null,"211"]
[null,"начисления на выплаты по оплате труда",null,null,null,null,null,null,null,null,null,null,null,null,null,null,null,null,null,null,null,null,null,null,"213"]
[null,"Оплата работ, услуг, всего",null,null,null,null,null,null,null,null,null,null,null,null,null,null,null,null,null,null,null,null,null,null,"220"]
[null,"из них:"]
[null,"услуги связи",null,null,null,null,null,null,null,null,null,null,null,null,null,null,null,null,null,null,null,null,null,null,"221"]
[null,"транспортные услуги",null,null,null,null,null,null,null,null,null,null,null,null,null,null,null,null,null,null,null,null,null,null,"222"]
[null,"коммунальные услуги",null,null,null,null,null,null,null,null,null,null,null,null,null,null,null,null,null,null,null,null,null,null,"223"]
[null,"арендная плата за пользование имуществом",null,null,null,null,null,null,null,null,null,null,null,null,null,null,null,null,null,null,null,null,null,null,"224"]
[null,"работы, услуги по содержанию имущества",null,null,null,null,null,null,null,null,null,null,null,null,null,null,null,null,null,null,null,null,null,null,"225"]
[null,"прочие работы, услуги",null,null,null,null,null,null,null,null,null,null,null,null,null,null,null,null,null,null,null,null,null,null,"226"]
[null,"Социальное обеспечение, всего",null,null,null,null,null,null,null,null,null,null,null,null,null,null,null,null,null,null,null,null,null,null,"260"]
[null,"из них:"]
[null,"пособия по социальной помощи населению",null,null,null,null,null,null,null,null,null,null,null,null,null,null,null,null,null,null,null,null,null,null,"262"]
[null,"Прочие расходы",null,null,null,null,null,null,null,null,null,null,null,null,null,null,null,null,null,null,null,null,null,null,"290"]
[null,"Приобретение\nосновных средств",null,null,null,null,null,null,null,null,null,null,null,null,null,null,null,null,null,null,null,null,null,null,"310"]
[null,"Приобретение нематериальных активов",null,null,null,null,null,null,null,null,null,null,null,null,null,null,null,null,null,null,null,null,null,null,"320"]
[null,"Приобретение материальных запасов",null,null,null,null,null,null,null,null,null,null,null,null,null,null,null,null,null,null,null,null,null,null,"340"]
[null,"Выплаты за счет иной приносящей доход деятельности",null,null,null,null,null,null,null,null,null,null,null,null,null,null,null,null,null,null,null,null,null,null,"900",null,null,null,null,null,null,null,null,null,null,null,null,null,2502200,null,null,null,null,null,null,null,null,null,2502200,null,null,null,null,null,null,null,null,null,null,null,null,null,null,null,null,null,null,null,null,null,null,null,null,{"$f":"BV179+BV183+BV194+BV195","v":2173539.39},null,null,null,null,null,null,null,null,null,{"$f":"CF179+CF183+CF194+CF195","v":2173539.39}]
[null,"в том числе"]
[null,"оплата труда и начисления на выплаты по оплате труда, всего",null,null,null,null,null,null,null,null,null,null,null,null,null,null,null,null,null,null,null,null,null,null,"210",null,null,null,null,null,null,null,null,null,null,null,null,null,{"$f":"AM181+AM182","v":2313800},null,null,null,null,null,null,null,null,null,{"$f":"AW181+AW182","v":2313800},null,null,null,null,null,null,null,null,null,null,null,null,null,null,null,null,null,null,null,null,null,null,null,null,{"$f":"BV181+BV182","v":2011858.2000000002},null,null,null,null,null,null,null,null,null,{"$f":"CF181+CF182","v":2011858.2000000002}]
[null,"из них:"]
[null,"заработная плата",null,null,null,null,null,null,null,null,null,null,null,null,null,null,null,null,null,null,null,null,null,null,"211",null,null,null,null,null,null,null,null,null,null,null,null,null,1816700,null,null,null,null,null,null,null,null,null,1816700,null,null,null,null,null,null,null,null,null,null,null,null,null,null,null,null,null,null,null,null,null,null,null,null,1581890.34,null,null,null,null,null,null,null,null,null,1581890.34]
[null,"начисления на выплаты по оплате труда",null,null,null,null,null,null,null,null,null,null,null,null,null,null,null,null,null,null,null,null,null,null,"213",null,null,null,null,null,null,null,null,null,null,null,null,null,497100,null,null,null,null,null,null,null,null,null,497100,null,null,null,null,null,null,null,null,null,null,null,null,null,null,null,null,null,null,null,null,null,null,null,null,429967.86,null,null,null,null,null,null,null,null,null,429967.86]
[null,"Оплата работ, услуг, всего",null,null,null,null,null,null,null,null,null,null,null,null,null,null,null,null,null,null,null,null,null,null,"220",null,null,null,null,null,null,null,null,null,null,null,null,null,{"$f":"AM185+AM186+AM187+AM188+AM189+AM190","v":103900},null,null,null,null,null,null,null,null,null,{"$f":"AW185+AW186+AW187+AW188+AW189+AW190","v":103900},null,null,null,null,null,null,null,null,null,null,null,null,null,null,null,null,null,null,null,null,null,null,null,null,{"$f":"BV185+BV186+BV187+BV188+BV189+BV190","v":81822.399999999994},null,null,null,null,null,null,null,null,null,{"$f":"CF185+CF186+CF187+CF188+CF189+CF190","v":81822.399999999994}]
[null,"из них:"]
[null,"услуги связи",null,null,null,null,null,null,null,null,null,null,null,null,null,null,null,null,null,null,null,null,null,null,"221"]
[null,"транспортные услуги",null,null,null,null,null,null,null,null,null,null,null,null,null,null,null,null,null,null,null,null,null,null,"222"]
[null,"коммунальные услуги",null,null,null,null,null,null,null,null,null,null,null,null,null,null,null,null,null,null,null,null,null,null,"223"]
[null,"арендная плата за пользование имуществом",null,null,null,null,null,null,null,null,null,null,null,null,null,null,null,null,null,null,null,null,null,null,"224"]
[null,"работы, услуги по содержанию имущества",null,null,null,null,null,null,null,null,null,null,null,null,null,null,null,null,null,null,null,null,null,null,"225"]
[null,"прочие работы, услуги",null,null,null,null,null,null,null,null,null,null,null,null,null,null,null,null,null,null,null,null,null,null,"226",null,null,null,null,null,null,null,null,null,null,null,null,null,103900,null,null,null,null,null,null,null,null,null,103900,null,null,null,null,null,null,null,null,null,null,null,null,null,null,null,null,null,null,null,null,null,null,null,null,81822.399999999994,null,null,null,null,null,null,null,null,null,81822.399999999994]
[null,"Социальное обеспечение, всего",null,null,null,null,null,null,null,null,null,null,null,null,null,null,null,null,null,null,null,null,null,null,"260"]
[null,"из них:"]
[null,"пособия по социальной помощи населению",null,null,null,null,null,null,null,null,null,null,null,null,null,null,null,null,null,null,null,null,null,null,"262"]
[null,"Прочие расходы",null,null,null,null,null,null,null,null,null,null,null,null,null,null,null,null,null,null,null,null,null,null,"290",null,null,null,null,null,null,null,null,null,null,null,null,null,24100,null,null,null,null,null,null,null,null,null,24100,null,null,null,null,null,null,null,null,null,null,null,null,null,null,null,null,null,null,null,null,null,null,null,null,23737.79,null,null,null,null,null,null,null,null,null,23737.79]
[null,"Приобретение\nосновных средств",null,null,null,null,null,null,null,null,null,null,null,null,null,null,null,null,null,null,null,null,null,null,"310",null,null,null,null,null,null,null,null,null,null,null,null,null,60400,null,null,null,null,null,null,null,null,null,60400,null,null,null,null,null,null,null,null,null,null,null,null,null,null,null,null,null,null,null,null,null,null,null,null,56121,null,null,null,null,null,null,null,null,null,56121]
[null,"Приобретение нематериальных активов",null,null,null,null,null,null,null,null,null,null,null,null,null,null,null,null,null,null,null,null,null,null,"320"]
[null,"Приобретение материальных запасов",null,null,null,null,null,null,null,null,null,null,null,null,null,null,null,null,null,null,null,null,null,null,"340"]
[null,"Планируемый остаток средств на конец текущего финансового года",null,null,null,null,null,null,null,null,null,null,null,null,null,null,null,null,null,null,null,null,null,null,null,null,null,null,null,null,null,null,null,null,null,null,null,null,null,null,null,null,null,null,null,null,null,null,null,null,null,null,null,null,null,null,null,null,null,null,null,null,null,null,null,null,null,null,null,null,null,null,null,1382442.58]
[]
[]
[null,null,null,null,null,null,null,"III. Об использовании имущества, закрепленного за учреждением"]
[]
["№ \nп/п",null,null,null,null,null,"Наименование показателя",null,null,null,null,null,null,null,null,null,null,null,null,null,null,null,null,null,null,null,null,null,null,null,null,null,null,null,null,null,null,null,null,null,null,null,null,null,null,null,null,null,null,null,null,null,null,null,null,null,null,null,null,null,null,null,null,null,null,null,null,null,"На начало отчетного периода",null,null,null,null,null,null,null,null,null,null,null,null,null,null,null,null,null,null,null,"На конец отчетного периода"]
["1",null,null,null,null,null,null,"Общая балансовая (остаточная) стоимость недвижимого  имущества, находящегося у учреждения на праве оперативного управления ( руб.коп.)*",null,null,null,null,null,null,null,null,null,null,null,null,null,null,null,null,null,null,null,null,null,null,null,null,null,null,null,null,null,null,null,null,null,null,null,null,null,null,null,null,null,null,null,null,null,null,null,null,null,null,null,null,null,null,null,null,null,null,null,null,12923191.300000001,null,null,null,null,null,null,null,null,null,null,null,null,null,null,null,null,null,null,null,3694561.88]
["2",null,null,null,null,null,null,"Общая балансовая (остаточная) стоимость недвижимого  имущества, находящегося у учреждения на праве оперативного управления и переданного в аренду ( руб.коп.)*"]
["3",null,null,null,null,null,null,"Общая балансовая (остаточная) стоимость недвижимого  имущества, находящегося у учреждения на праве оперативного управления и переданного в безвозмездное пользование (руб.коп.)*",null,null,null,null,null,null,null,null,null,null,null,null,null,null,null,null,null,null,null,null,null,null,null,null,null,null,null,null,null,null,null,null,null,null,null,null,null,null,null,null,null,null,null,null,null,null,null,null,null,null,null,null,null,null,null,null,null,null,null,null,12923191.300000001,null,null,null,null,null,null,null,null,null,null,null,null,null,null,null,null,null,null,null,3694561.88]
["4",null,null,null,null,null,null,"Общая балансовая (остаточная) стоимость движимого  имущества, находящегося у учреждения на праве оперативного управления ( руб.коп.)*",null,null,null,null,null,null,null,null,null,null,null,null,null,null,null,null,null,null,null,null,null,null,null,null,null,null,null,null,null,null,null,null,null,null,null,null,null,null,null,null,null,null,null,null,null,null,null,null,null,null,null,null,null,null,null,null,null,null,null,null,71170330.25,null,null,null,null,null,null,null,null,null,null,null,null,null,null,null,null,null,null,null,71866365.75]
["5",null,null,null,null,null,null,"Общая балансовая (остаточная) стоимость движимого имущества, находящегося у учреждения на праве оперативного управления и переданного в аренду (руб.коп.)*"]
["6",null,null,null,null,null,null,"Общая балансовая (остаточная) стоимость движимого  имущества, находящегося у учреждения на праве оперативного управления и переданного в безвозмездное пользование ( руб.коп.)*",null,null,null,null,null,null,null,null,null,null,null,null,null,null,null,null,null,null,null,null,null,null,null,null,null,null,null,null,null,null,null,null,null,null,null,null,null,null,null,null,null,null,null,null,null,null,null,null,null,null,null,null,null,null,null,null,null,null,null,null,711703300.25,null,null,null,null,null,null,null,null,null,null,null,null,null,null,null,null,null,null,null,71866365.75]
["7",null,null,null,null,null,null,"Общая балансовая (остаточная) стоимость особо ценного движимого  имущества, находящегося у учреждения на праве оперативного управления (руб.коп.)*",null,null,null,null,null,null,null,null,null,null,null,null,null,null,null,null,null,null,null,null,null,null,null,null,null,null,null,null,null,null,null,null,null,null,null,null,null,null,null,null,null,null,null,null,null,null,null,null,null,null,null,null,null,null,null,null,null,null,null,null,67582722.870000005,null,null,null,null,null,null,null,null,null,null,null,null,null,null,null,null,null,null,null,68181053.510000005]
["8",null,null,null,null,null,null,"Общая балансовая (остаточная) стоимость особо ценного движимого  имущества, находящегося у учреждения на праве оперативного управления и переданного в аренду (руб.коп.)*"]
["9",null,null,null,null,null,null,"Общая балансовая (остаточная) стоимость особо ценного движимого  имущества, находящегося у учреждения на праве оперативного управления и переданного в безвозмездное пользование (руб.коп.)*",null,null,null,null,null,null,null,null,null,null,null,null,null,null,null,null,null,null,null,null,null,null,null,null,null,null,null,null,null,null,null,null,null,null,null,null,null,null,null,null,null,null,null,null,null,null,null,null,null,null,null,null,null,null,null,null,null,null,null,null,67582722.870000005,null,null,null,null,null,null,null,null,null,null,null,null,null,null,null,null,null,null,null,68181053.510000005]
["10",null,null,null,null,null,null,"Общая площадь объектов недвижимого  имущества, находящегося у учреждения на праве оперативного управления (кв. м)",null,null,null,null,null,null,null,null,null,null,null,null,null,null,null,null,null,null,null,null,null,null,null,null,null,null,null,null,null,null,null,null,null,null,null,null,null,null,null,null,null,null,null,null,null,null,null,null,null,null,null,null,null,null,null,null,null,null,null,null,5226.3999999999996,null,null,null,null,null,null,null,null,null,null,null,null,null,null,null,null,null,null,null,5194.1000000000004]
["11",null,null,null,null,null,null,"Общая площадь объектов недвижимого  имущества, находящегося у учреждения на праве оперативного управления и переданного в аренду (кв. м)"]
["12",null,null,null,null,null,null,"Общая площадь объектов недвижимого  имущества, находящегося у учреждения на праве оперативного управления и переданного в безвозмездное пользование (кв. м)",null,null,null,null,null,null,null,null,null,null,null,null,null,null,null,null,null,null,null,null,null,null,null,null,null,null,null,null,null,null,null,null,null,null,null,null,null,null,null,null,null,null,null,null,null,null,null,null,null,null,null,null,null,null,null,null,null,null,null,null,5226.3999999999996,null,null,null,null,null,null,null,null,null,null,null,null,null,null,null,null,null,null,null,5194.1000000000004]
["13",null,null,null,null,null,null,"Общая площадь объектов недвижимого имущества, арендуемых учреждением (кв. м)"]
["14",null,null,null,null,null,null,"Количество объектов недвижимого  имущества, находящегося у учреждения на праве оперативного управления (шт.)",null,null,null,null,null,null,null,null,null,null,null,null,null,null,null,null,null,null,null,null,null,null,null,null,null,null,null,null,null,null,null,null,null,null,null,null,null,null,null,null,null,null,null,null,null,null,null,null,null,null,null,null,null,null,null,null,null,null,null,null,3,null,null,null,null,null,null,null,null,null,null,null,null,null,null,null,null,null,null,null,2]
["15",null,null,null,null,null,null,"Общая балансовая (остаточная) стоимость недвижимого имущества, приобретенного учреждением в отчетном финансовом году за счет средств, выделенных учреждению учредителем на указанные цели ( руб.коп.)*"]
["16",null,null,null,null,null,null,"Общая балансовая (остаточная) стоимость недвижимого имущества, приобретенного учреждением в отчетном финансовом году за счет доходов, полученных от платных услуг и иной приносящей доход деятельности (руб.коп.)*"]
["17",null,null,null,null,null,null,"Объем средств, полученных в отчетном году от распоряжения в установленном порядке  имуществом, находящимся у учреждения на праве оперативного управления ( руб.коп)"]
[]
[]
["Главный бухгалтер",null,null,null,null,null,null,null,null,null,null,null,null,null,null,null,null,null,null,null,null,null,null,null,null,null,null,null,null,null,null,null,null,null,null,null,null,null,null,null,null,null,null,null,null,null,null,null,null,null,null,null,null,null,null,null,null,null,null,null,null,null,null,null,null,null,null,null,null,null,null,"Ж.Ю.Казакова"]